fUST/lending_fUST_20260424
["ID","MTS","AMOUNT","RATE_DAILY","PERIOD"]
[421099075,1777043438816,-500.0,0.00015393,2]
[421099077,1777043438826,-500.0,0.00015393,2]
[421099078,1777043438837,-500.0,0.00015393,2]
[421099080,1777043438847,-500.0,0.00015393,2]
[421099082,1777043438858,-500.0,0.00015393,2]
[421099084,1777043438868,-642.22503346,0.00015393,2]
[421099085,1777043438878,-500.0,0.00015393,2]
[421099087,1777043438889,-193.25389587,0.00015393,2]
[421099089,1777043438899,-500.0,0.00015393,2]
[421099091,1777043438909,-500.0,0.00015393,2]
[421099092,1777043438920,-500.0,0.00015393,2]
[421099094,1777043438930,-500.0,0.00015393,2]
[421099096,1777043438940,-500.0,0.00015393,2]
[421099098,1777043438951,-500.0,0.00015393,2]
[421099100,1777043438961,-500.0,0.00015393,2]
[421099101,1777043438971,-500.0,0.00015393,2]
[421099103,1777043438982,-500.0,0.00015393,2]
[421099105,1777043438994,-500.0,0.00015393,2]
[421099107,1777043439004,-500.0,0.00015393,2]
[421099108,1777043439015,-500.0,0.00015393,2]
[421099110,1777043439025,-500.0,0.00015393,2]
[421099111,1777043439036,-500.0,0.00015393,2]
[421099113,1777043439046,-500.0,0.00015393,2]
[421099114,1777043439056,-500.0,0.00015393,2]
[421099116,1777043439067,-500.0,0.00015393,2]
[421099118,1777043439079,-500.0,0.00015393,2]
[421099119,1777043439090,-500.0,0.00015393,2]
[421099121,1777043439101,-500.0,0.00015393,2]
[421099122,1777043439111,-436.45913382,0.00015393,2]
[421099124,1777043439122,-1371.560401,0.00015394,3]
[421099126,1777043439132,-362.43232557,0.00015395,2]
[421099127,1777043439143,-208968.93261462,0.00015396,2]
[421099129,1777043439156,-102763.62129249,0.00015396,2]
[421099130,1777043439168,-1388267.44609289,0.00015396,2]
[421099132,1777043439179,-531.37751435,0.000154,2]
[421099134,1777043439190,-324.011,0.00015495,2]
[421099135,1777043439200,-189.59009828,0.00015495,2]
[421099137,1777043439211,-4198.1004971,0.00015538,2]
[421099139,1777043439222,-3300.0506235,0.00015593,2]
[421099140,1777043439232,-155.0,0.00015595,2]
[421099142,1777043439242,-512.1963302,0.000156,2]
[421099144,1777043439253,-158.0,0.000156,2]
[421099146,1777043439264,-158.0,0.000156,2]
[421099147,1777043439274,-158.0,0.000157,2]
[421099149,1777043439285,-2007.99555429,0.00015711,2]
[421099151,1777043439296,-3130.4447408,0.000158,2]
[421099153,1777043439306,-158.0,0.000158,2]
[421099155,1777043439316,-151.3975019,0.0001582,2]
[421099156,1777043439327,-155.0,0.00015985,2]
[421099158,1777043439339,-554870.96225863,0.0001617,2]
[421099159,1777043439350,-300.0,0.00016212,2]
[421099161,1777043439361,-300.0,0.00016212,2]
[421099163,1777043439372,-300.0,0.00016212,2]
[421099165,1777043439382,-300.0,0.00016212,2]
[421099166,1777043439395,-300.0,0.00016212,2]
[421099168,1777043439405,-300.0,0.00016212,2]
[421099169,1777043439415,-300.0,0.00016212,2]
[421099171,1777043439426,-300.0,0.00016212,2]
[421099172,1777043439436,-300.0,0.00016212,2]
[421099174,1777043439446,-300.0,0.00016212,2]
[421099175,1777043439457,-300.0,0.00016212,2]
[421099177,1777043439467,-300.0,0.00016212,2]
[421099179,1777043439478,-300.0,0.00016212,2]
[421099181,1777043439489,-300.0,0.00016212,2]
[421099182,1777043439500,-300.0,0.00016212,2]
[421099184,1777043439511,-600.0,0.00016212,2]
[421099186,1777043439522,-155.0,0.00016375,2]
[421099187,1777043439532,-5049.6445879,0.0001642,2]
[421099189,1777043439543,-422.3,0.00016438,2]
[421099191,1777043439555,-1561.0,0.00016438,2]
[421099192,1777043439566,-534.0,0.00016575,2]
[421099194,1777043439577,-534.0,0.00016575,2]
[421099196,1777043439588,-534.0,0.00016575,2]
[421099197,1777043439597,-159.0,0.000166,2]
[421099199,1777043439606,-160.45779736,0.000166,2]
[421099200,1777043439616,-442.0,0.00016687,2]
[421099202,1777043439626,-183.0,0.00016687,2]
[421099204,1777043439635,-185.0,0.00016687,2]
[421099205,1777043439644,-422.3,0.00016712,2]
[421099207,1777043439655,-1561.0,0.00016712,2]
[421099209,1777043439664,-184.0,0.00016735,2]
[421099210,1777043439673,-155.0,0.00016765,2]
[421099212,1777043439683,-831.0,0.000169,2]
[421099217,1777043440163,-422.3,0.00016986,2]
[421099220,1777043440185,-1561.0,0.00016986,2]
[421099222,1777043440202,-2150.738,0.00016987,2]
[421099223,1777043440212,-331.0,0.00017,5]
[421099224,1777043440222,-5633.08,0.00017,2]
[421099226,1777043440232,-155.0,0.00017155,2]
[421099227,1777043440241,-422.3,0.0001726,2]
[421099228,1777043440250,-1561.0,0.0001726,2]
[421099229,1777043440260,-44816.71172321,0.0001729,2]
[421099230,1777043440269,-936.7228362,0.00017521,2]
[421099231,1777043440279,-160.0,0.00017529,2]
[421099232,1777043440287,-422.3,0.00017534,2]
[421099233,1777043440297,-1561.0,0.00017534,2]
[421099234,1777043440306,-2367.84005831,0.00017535,2]
[421099235,1777043440316,-5049.6445879,0.0001754,2]
[421099236,1777043440325,-736.3408241,0.00017583,2]
[421099237,1777043440335,-2852.89685604,0.000176,2]
[421099238,1777043440345,-344.75612743,0.000176,2]
[421099239,1777043440354,-2852.89685604,0.000178,2]
[421099240,1777043440363,-344.75612743,0.000178,2]
[421099241,1777043440372,-422.3,0.00017808,2]
[421099242,1777043440382,-1561.0,0.00017808,2]
[421099243,1777043440391,-698.4966363,0.00017817,2]
[421099244,1777043440400,-720.0,0.00017833,2]
[421099245,1777043440410,-630.326235,0.00017834,2]
[421099246,1777043440419,-160.0,0.00017881,3]
[421099247,1777043440428,-197.76704858,0.000179,2]
[421099249,1777043440438,-158.0,0.000179,3]
[421099250,1777043440448,-158.0,0.000179,3]
[421099251,1777043440458,-158.0,0.000179,4]
[421099252,1777043440471,-158.0,0.000179,4]
[421099254,1777043440482,-158.0,0.000179,2]
[421099256,1777043440493,-209.0111164,0.00017964,2]
[421099258,1777043440503,-3128.69985494,0.00017985,2]
[421099260,1777043440513,-168.68855858,0.00018,2]
[421099262,1777043440523,-2852.89685604,0.00018,2]
[421099264,1777043440533,-308.02521534,0.00018,2]
[421099266,1777043440542,-193.56369968,0.00018,2]
[421099269,1777043440553,-206.86733254,0.00018,2]
[421099270,1777043440562,-344.75612743,0.00018,2]
[421099272,1777043440571,-171.68388157,0.00018,2]
[421099274,1777043440581,-202.80837213,0.00018,2]
[421099276,1777043440591,-201.71710906,0.00018,2]
[421099278,1777043440600,-709.04768098,0.00018,2]
[421099280,1777043440610,-229.04898637,0.00018,2]
[421099282,1777043440621,-164.299846,0.00018027,2]
[421099284,1777043440631,-422.3,0.00018082,2]
[421099285,1777043440641,-1561.0,0.00018082,2]
[421099286,1777043440651,-2852.89685604,0.000181,2]
[421099287,1777043440660,-344.75612743,0.000181,2]
[421099288,1777043440670,-168.68855858,0.000182,2]
[421099289,1777043440679,-308.02521534,0.000182,2]
[421099290,1777043440688,-193.56369968,0.000182,2]
[421099291,1777043440698,-206.86733254,0.000182,2]
[421099292,1777043440707,-202.80837213,0.000182,2]
[421099293,1777043440717,-709.04768098,0.000182,2]
[421099294,1777043440727,-229.04898637,0.000182,2]
[421099295,1777043440736,-155.8556663,0.00018267,2]
[421099296,1777043440746,-2852.89685604,0.000183,2]
[421099297,1777043440755,-344.75612743,0.000183,2]
[421099298,1777043440765,-422.3,0.00018356,2]
[421099299,1777043440774,-1561.0,0.00018356,2]
[421099300,1777043440783,-308.02521534,0.000184,2]
[421099301,1777043440793,-206.86733254,0.000184,2]
[421099302,1777043440810,-202.80837213,0.000184,2]
[421099303,1777043440820,-709.04768098,0.000184,2]
[421099304,1777043440829,-229.04898637,0.000184,2]
[421099306,1777043440839,-160.0,0.00018424,2]
[421099308,1777043440849,-477.777769,0.00018424,2]
[421099309,1777043440858,-795.555538,0.00018424,2]
[421099310,1777043440868,-160.0,0.00018424,2]
[421099311,1777043440877,-543.696006,0.00018424,2]
[421099312,1777043440892,-927.392012,0.00018424,2]
[421099314,1777043440901,-1698.58443424,0.000185,2]
[421099316,1777043440911,-2852.89685604,0.000185,2]
[421099318,1777043440921,-308.02521534,0.000185,2]
[421099320,1777043440930,-206.86733254,0.000185,2]
[421099322,1777043440940,-709.04768098,0.000185,2]
[421099324,1777043440949,-229.04898637,0.000185,2]
[421099326,1777043440958,-269.0137571,0.0001859,2]
[421099328,1777043440968,-422.3,0.0001863,2]
[421099330,1777043440978,-525.0,0.0001863,2]
[421099332,1777043440989,-5049.6445879,0.0001866,2]
[421099334,1777043440999,-1099.70149263,0.00018671,2]
[421099336,1777043441008,-2852.89685604,0.000187,2]
[421099338,1777043441018,-308.02521534,0.000187,2]
[421099340,1777043441027,-206.86733254,0.000187,2]
[421099342,1777043441036,-709.04768098,0.000187,2]
[421099344,1777043441045,-229.04898637,0.000187,2]
[421099346,1777043441055,-7006.61667086,0.000187,30]
[421099348,1777043441064,-155.0,0.00018714,2]
[421099350,1777043441074,-29911.12653544,0.000188,2]
[421099352,1777043441084,-255.05,0.000188,2]
[421099354,1777043441094,-255.05,0.000188,2]
[421099356,1777043441103,-255.05,0.000188,2]
[421099358,1777043441113,-255.05,0.000188,2]
[421099360,1777043441122,-214.0,0.0001885,2]
[421099362,1777043441132,-1063.0,0.000189,2]
[421099364,1777043441142,-2852.89685604,0.000189,2]
[421099366,1777043441152,-422.3,0.00018904,2]
[421099368,1777043441162,-2000.0,0.00019,2]
[421099370,1777043441171,-6933.0,0.00019,2]
[421099372,1777043441181,-10003.00071047,0.00019,10]
[421099375,1777043441191,-224.3844014,0.00019,5]
[421099376,1777043441201,-160.0,0.00019,10]
[421099378,1777043441211,-433.0,0.00019,2]
[421099380,1777043441221,-231.0,0.00019,2]
[421099382,1777043441231,-361.0,0.00019,2]
[421099384,1777043441240,-648.0,0.00019,2]
[421099386,1777043441250,-411.0,0.00019,2]
[421099388,1777043441259,-201.0,0.00019,2]
[421099390,1777043441269,-178.0,0.00019,2]
[421099392,1777043441278,-3167.0,0.00019,2]
[421099394,1777043441288,-548.70370492,0.00019078,2]
[421099396,1777043441298,-600.0,0.000191,4]
[421099398,1777043441307,-2852.89685604,0.000191,2]
[421099400,1777043441317,-674.8729,0.00019168,2]
[421099402,1777043441327,-674.8729,0.00019168,2]
[421099404,1777043441337,-674.8729,0.00019168,2]
[421099405,1777043441346,-674.8729,0.00019168,2]
[421099408,1777043441356,-602.8743,0.00019168,2]
[421099409,1777043441366,-602.8743,0.00019168,2]
[421099411,1777043441376,-459.4649,0.00019168,2]
[421099413,1777043441385,-459.4649,0.00019168,2]
[421099415,1777043441394,-588.15380896,0.00019173,2]
[421099417,1777043441403,-485.06208764,0.00019173,2]
[421099419,1777043441413,-500.0,0.00019173,2]
[421099421,1777043441422,-150.0,0.00019173,2]
[421099423,1777043441432,-501.31628334,0.00019173,2]
[421099425,1777043441443,-220.12816413,0.00019173,2]
[421099427,1777043441452,-500.0,0.00019173,2]
[421099429,1777043441462,-2368.4202,0.00019178,2]
[421099431,1777043441472,-500.0,0.00019178,2]
[421099433,1777043441482,-500.0,0.00019178,2]
[421099435,1777043441492,-515.48739775,0.00019178,2]
[421099437,1777043441502,-422.3,0.00019178,2]
[421099439,1777043441512,-424.56021451,0.00019178,2]
[421099441,1777043441522,-500.0,0.00019178,2]
[421099443,1777043441532,-500.0,0.00019178,2]
[421099445,1777043441542,-500.0,0.00019178,2]
[421099447,1777043441551,-500.0,0.00019178,2]
[421099449,1777043441561,-500.0,0.00019178,2]
[421099451,1777043441571,-500.0,0.00019178,2]
[421099453,1777043441580,-1422.03,0.00019178,2]
[421099455,1777043441591,-545.45289442,0.00019178,2]
[421099456,1777043441600,-500.0,0.00019178,2]
[421099458,1777043441609,-623.53809397,0.00019178,2]
[421099460,1777043441619,-500.0,0.00019178,2]
[421099462,1777043441628,-500.0,0.00019178,2]
[421099464,1777043441638,-3578.85,0.00019178,2]
[421099466,1777043441647,-1885.58,0.00019178,2]
[421099467,1777043441657,-500.0,0.00019178,2]
[421099468,1777043441667,-977.92,0.00019178,2]
[421099469,1777043441676,-500.0,0.00019178,2]
[421099470,1777043441686,-500.0,0.00019178,2]
[421099471,1777043441695,-500.0,0.00019178,2]
[421099472,1777043441705,-1566.09,0.00019178,2]
[421099473,1777043441715,-500.0,0.00019178,2]
[421099474,1777043441725,-1526.34,0.00019178,2]
[421099475,1777043441734,-471.98476561,0.00019178,2]
[421099476,1777043441743,-500.0,0.00019178,2]
[421099477,1777043441754,-500.0,0.00019178,2]
[421099478,1777043441763,-1800.63,0.00019178,2]
[421099479,1777043441772,-500.0,0.00019178,2]
[421099480,1777043441782,-1476.74,0.00019178,2]
[421099481,1777043441792,-500.0,0.00019178,2]
[421099482,1777043441802,-500.0,0.00019178,2]
[421099483,1777043441811,-1784.18,0.00019178,2]
[421099484,1777043441820,-500.0,0.00019178,2]
[421099485,1777043441830,-500.0,0.00019178,2]
[421099486,1777043441839,-500.0,0.00019178,2]
[421099487,1777043441849,-500.0,0.00019178,2]
[421099488,1777043441859,-1108.3,0.00019178,2]
[421099489,1777043441868,-515.22,0.00019178,2]
[421099490,1777043441878,-500.0,0.00019178,2]
[421099491,1777043441887,-750.48,0.00019178,2]
[421099492,1777043441897,-500.0,0.00019178,2]
[421099493,1777043441908,-527.50791598,0.00019178,2]
[421099494,1777043441918,-500.0,0.00019178,2]
[421099495,1777043441927,-500.0,0.00019178,2]
[421099496,1777043441937,-3165.32,0.00019178,2]
[421099497,1777043441946,-500.0,0.00019178,2]
[421099498,1777043441957,-500.0,0.00019178,2]
[421099499,1777043441967,-500.0,0.00019178,2]
[421099500,1777043441976,-500.0,0.00019178,2]
[421099501,1777043441987,-500.0,0.00019178,2]
[421099502,1777043441997,-500.0,0.00019178,2]
[421099503,1777043442007,-1470.21,0.00019178,2]
[421099504,1777043442017,-500.0,0.00019178,2]
[421099505,1777043442026,-534.56951565,0.00019178,2]
[421099506,1777043442037,-500.0,0.00019178,2]
[421099507,1777043442046,-500.0,0.00019178,2]
[421099508,1777043442056,-651.84,0.00019178,2]
[421099509,1777043442065,-500.0,0.00019178,2]
[421099510,1777043442074,-500.0,0.00019178,2]
[421099511,1777043442084,-536.38,0.00019178,2]
[421099512,1777043442093,-643.78,0.00019178,2]
[421099513,1777043442103,-500.0,0.00019178,2]
[421099514,1777043442114,-512.70528391,0.00019178,2]
[421099515,1777043442124,-528.18443545,0.00019178,2]
[421099516,1777043442134,-500.0,0.00019178,2]
[421099517,1777043442143,-972.18,0.00019178,2]
[421099518,1777043442153,-500.0,0.00019178,2]
[421099519,1777043442163,-500.0,0.00019178,2]
[421099520,1777043442172,-500.0,0.00019178,2]
[421099521,1777043442185,-500.0,0.00019178,2]
[421099522,1777043442196,-537.19207629,0.00019178,2]
[421099523,1777043442207,-2902.61,0.00019178,2]
[421099524,1777043442216,-500.0,0.00019178,2]
[421099525,1777043442229,-500.0,0.00019178,2]
[421099526,1777043442239,-500.0,0.00019178,2]
[421099527,1777043442249,-500.0,0.00019178,2]
[421099528,1777043442259,-1575.52,0.00019178,2]
[421099529,1777043442269,-500.0,0.00019178,2]
[421099530,1777043442278,-500.0,0.00019178,2]
[421099531,1777043442287,-611.15988706,0.00019178,2]
[421099532,1777043442297,-500.0,0.00019178,2]
[421099533,1777043442306,-500.0,0.00019178,2]
[421099534,1777043442315,-509.86008202,0.00019178,2]
[421099535,1777043442325,-500.0,0.00019178,2]
[421099536,1777043442335,-500.0,0.00019178,2]
[421099537,1777043442344,-561.24,0.00019178,2]
[421099538,1777043442354,-2722.35,0.00019178,2]
[421099539,1777043442364,-500.0,0.00019178,2]
[421099540,1777043442373,-500.0,0.00019178,2]
[421099541,1777043442383,-500.0,0.00019178,2]
[421099542,1777043442392,-2341.73,0.00019178,2]
[421099543,1777043442401,-500.0,0.00019178,2]
[421099544,1777043442412,-500.0,0.00019178,2]
[421099545,1777043442421,-637.28,0.00019178,2]
[421099546,1777043442431,-500.0,0.00019178,2]
[421099547,1777043442441,-500.0,0.00019178,2]
[421099548,1777043442451,-500.0,0.00019178,2]
[421099549,1777043442460,-518.7331853,0.00019178,2]
[421099550,1777043442470,-500.0,0.00019178,2]
[421099551,1777043442479,-1202.04,0.00019178,2]
[421099552,1777043442489,-500.0,0.00019178,2]
[421099553,1777043442499,-500.0,0.00019178,2]
[421099554,1777043442508,-500.0,0.00019178,2]
[421099555,1777043442518,-500.0,0.00019178,2]
[421099556,1777043442529,-1887.86,0.00019178,2]
[421099557,1777043442539,-500.0,0.00019178,2]
[421099558,1777043442550,-500.0,0.00019178,2]
[421099559,1777043442560,-500.0,0.00019178,2]
[421099560,1777043442571,-1114.72,0.00019178,2]
[421099561,1777043442581,-534.83984887,0.00019178,2]
[421099562,1777043442591,-500.0,0.00019178,2]
[421099563,1777043442601,-841.95,0.00019178,2]
[421099564,1777043442611,-500.0,0.00019178,2]
[421099565,1777043442620,-500.0,0.00019178,2]
[421099566,1777043442630,-500.0,0.00019178,2]
[421099567,1777043442640,-500.0,0.00019178,2]
[421099568,1777043442649,-500.0,0.00019178,2]
[421099569,1777043442659,-255.05,0.00019178,2]
[421099570,1777043442668,-255.05,0.00019178,2]
[421099571,1777043442677,-255.05,0.00019178,2]
[421099572,1777043442686,-255.05,0.00019178,2]
[421099573,1777043442696,-255.05,0.00019178,2]
[421099574,1777043442707,-255.05,0.00019178,2]
[421099575,1777043442717,-255.05,0.00019178,2]
[421099576,1777043442727,-500.0,0.00019178,2]
[421099577,1777043442736,-255.05,0.00019178,2]
[421099578,1777043442746,-255.05,0.00019178,2]
[421099579,1777043442757,-255.05,0.00019178,2]
[421099580,1777043442766,-255.05,0.00019178,2]
[421099581,1777043442776,-255.05,0.00019178,2]
[421099582,1777043442786,-255.05,0.00019178,2]
[421099583,1777043442797,-1663.69,0.00019178,2]
[421099584,1777043442808,-500.0,0.00019178,2]
[421099585,1777043442818,-255.05,0.00019178,2]
[421099586,1777043442829,-1204.48,0.00019178,2]
[421099588,1777043442838,-255.05,0.00019178,2]
[421099589,1777043442848,-255.05,0.00019178,2]
[421099590,1777043442858,-500.0,0.00019178,2]
[421099591,1777043442868,-500.0,0.00019178,2]
[421099592,1777043442877,-500.0,0.00019178,2]
[421099593,1777043442887,-3586.78,0.00019178,2]
[421099594,1777043442896,-500.0,0.00019178,2]
[421099595,1777043442906,-500.0,0.00019178,2]
[421099596,1777043442915,-500.0,0.00019178,2]
[421099597,1777043442924,-367.19486035,0.00019178,2]
[421099598,1777043442934,-785.98,0.00019178,2]
[421099599,1777043442944,-1796.74,0.00019178,2]
[421099600,1777043442954,-593.69,0.00019178,2]
[421099601,1777043442964,-500.0,0.00019178,2]
[421099602,1777043442973,-500.0,0.00019178,2]
[421099604,1777043442984,-500.0,0.00019178,2]
[421099606,1777043442994,-619.83587846,0.00019178,2]
[421099609,1777043443003,-1669.75,0.00019178,2]
[421099611,1777043443013,-500.0,0.00019178,2]
[421099612,1777043443022,-500.0,0.00019178,2]
[421099614,1777043443031,-615.60811593,0.00019178,2]
[421099616,1777043443041,-783.81,0.00019178,2]
[421099618,1777043443050,-500.0,0.00019178,2]
[421099619,1777043443059,-500.0,0.00019178,2]
[421099620,1777043443069,-500.0,0.00019178,2]
[421099621,1777043443078,-500.0,0.00019178,2]
[421099623,1777043443088,-1292.46,0.00019178,2]
[421099624,1777043443098,-500.0,0.00019178,2]
[421099626,1777043443108,-500.0,0.00019178,2]
[421099628,1777043443117,-374.62813211,0.00019178,2]
[421099630,1777043443126,-500.0,0.00019178,2]
[421099631,1777043443135,-500.0,0.00019178,2]
[421099633,1777043443145,-537.85573229,0.00019178,2]
[421099637,1777043443349,-515.2177925,0.00019178,2]
[421099638,1777043443361,-500.0,0.00019178,2]
[421099639,1777043443370,-334.30846125,0.00019178,2]
[421099640,1777043443380,-500.0,0.00019178,2]
[421099641,1777043443390,-500.0,0.00019178,2]
[421099642,1777043443400,-527.5273912,0.00019178,2]
[421099643,1777043443409,-500.0,0.00019178,2]
[421099644,1777043443418,-514.91240246,0.00019178,2]
[421099645,1777043443427,-525.94890175,0.00019178,2]
[421099646,1777043443436,-1292.47,0.00019178,2]
[421099647,1777043443446,-597.28050229,0.00019178,2]
[421099648,1777043443455,-500.0,0.00019178,2]
[421099649,1777043443464,-500.0,0.00019178,2]
[421099650,1777043443474,-500.0,0.00019178,2]
[421099651,1777043443484,-500.0,0.00019178,2]
[421099652,1777043443494,-500.0,0.00019178,2]
[421099653,1777043443503,-500.0,0.00019178,2]
[421099654,1777043443512,-500.0,0.00019178,2]
[421099655,1777043443522,-500.0,0.00019178,2]
[421099656,1777043443531,-500.0,0.00019178,2]
[421099657,1777043443540,-500.0,0.00019178,2]
[421099658,1777043443550,-355.07030382,0.00019178,2]
[421099659,1777043443559,-2728.0,0.00019178,2]
[421099660,1777043443568,-500.0,0.00019178,2]
[421099661,1777043443577,-510.32,0.00019178,2]
[421099662,1777043443586,-500.0,0.00019178,2]
[421099663,1777043443597,-500.0,0.00019178,2]
[421099664,1777043443607,-500.0,0.00019178,2]
[421099665,1777043443616,-500.0,0.00019178,2]
[421099666,1777043443626,-403.32545863,0.00019178,2]
[421099667,1777043443636,-611.54442222,0.00019178,2]
[421099668,1777043443646,-565.03441509,0.00019178,2]
[421099669,1777043443655,-2262.79,0.00019178,2]
[421099670,1777043443664,-500.0,0.00019178,2]
[421099671,1777043443674,-878.51,0.00019178,2]
[421099672,1777043443683,-300.0,0.00019178,2]
[421099673,1777043443692,-4959.06,0.00019178,2]
[421099674,1777043443701,-500.0,0.00019178,2]
[421099675,1777043443711,-500.0,0.00019178,2]
[421099676,1777043443720,-198.91914757,0.00019178,2]
[421099677,1777043443731,-450.32983411,0.00019178,2]
[421099678,1777043443741,-560.18,0.00019178,2]
[421099679,1777043443750,-500.0,0.00019178,2]
[421099680,1777043443759,-500.0,0.00019178,2]
[421099681,1777043443769,-500.0,0.00019178,2]
[421099682,1777043443779,-500.0,0.00019178,2]
[421099683,1777043443789,-500.0,0.00019178,2]
[421099684,1777043443798,-500.0,0.00019178,2]
[421099685,1777043443808,-500.0,0.00019178,2]
[421099686,1777043443817,-2159.18,0.00019178,2]
[421099687,1777043443827,-588.72350138,0.00019178,2]
[421099688,1777043443836,-500.0,0.00019178,2]
[421099689,1777043443847,-500.0,0.00019178,2]
[421099690,1777043443857,-629.01,0.00019178,2]
[421099691,1777043443866,-883.59,0.00019178,2]
[421099692,1777043443876,-500.0,0.00019178,2]
[421099693,1777043443886,-500.0,0.00019178,2]
[421099694,1777043443895,-500.0,0.00019178,2]
[421099695,1777043443904,-500.0,0.00019178,2]
[421099696,1777043443913,-500.0,0.00019178,2]
[421099697,1777043443923,-2340.67,0.00019178,2]
[421099698,1777043443932,-500.0,0.00019178,2]
[421099699,1777043443942,-500.0,0.00019178,2]
[421099700,1777043443952,-500.0,0.00019178,2]
[421099701,1777043443961,-530.87,0.00019178,2]
[421099702,1777043443970,-500.0,0.00019178,2]
[421099703,1777043443979,-500.0,0.00019178,2]
[421099704,1777043443989,-500.0,0.00019178,2]
[421099705,1777043443999,-707.0,0.00019178,2]
[421099706,1777043444008,-1250.04,0.00019178,2]
[421099707,1777043444017,-500.0,0.00019178,2]
[421099708,1777043444027,-500.0,0.00019178,2]
[421099709,1777043444036,-1107.16,0.00019178,2]
[421099710,1777043444046,-500.0,0.00019178,2]
[421099711,1777043444055,-500.0,0.00019178,2]
[421099712,1777043444065,-2159.85,0.00019178,2]
[421099713,1777043444074,-520.5930196,0.00019178,2]
[421099714,1777043444083,-654.61,0.00019178,2]
[421099715,1777043444093,-1006.09,0.00019178,2]
[421099716,1777043444103,-534.97,0.00019178,2]
[421099717,1777043444113,-742.51,0.00019178,2]
[421099718,1777043444123,-512.77137592,0.00019178,2]
[421099719,1777043444132,-500.0,0.00019178,2]
[421099720,1777043444142,-517.97917625,0.00019178,2]
[421099721,1777043444151,-500.0,0.00019178,2]
[421099722,1777043444160,-500.0,0.00019178,2]
[421099723,1777043444170,-1090.81,0.00019178,2]
[421099724,1777043444179,-500.0,0.00019178,2]
[421099725,1777043444189,-500.0,0.00019178,2]
[421099726,1777043444198,-522.51125312,0.00019178,2]
[421099727,1777043444208,-500.0,0.00019178,2]
[421099728,1777043444217,-500.0,0.00019178,2]
[421099729,1777043444226,-1458.28,0.00019178,2]
[421099730,1777043444237,-648.11,0.00019178,2]
[421099731,1777043444246,-521.89509673,0.00019178,2]
[421099732,1777043444256,-500.0,0.00019178,2]
[421099733,1777043444265,-727.09,0.00019178,2]
[421099734,1777043444274,-541.83518346,0.00019178,2]
[421099735,1777043444283,-604.43,0.00019178,2]
[421099736,1777043444294,-514.07328539,0.00019178,2]
[421099737,1777043444303,-55243.95383,0.00019178,2]
[421099738,1777043444313,-500.0,0.00019178,2]
[421099739,1777043444323,-500.0,0.00019178,2]
[421099740,1777043444332,-500.0,0.00019178,2]
[421099741,1777043444342,-500.0,0.00019178,2]
[421099742,1777043444352,-500.0,0.00019178,2]
[421099743,1777043444361,-500.0,0.00019178,2]
[421099744,1777043444371,-326.60943377,0.00019178,2]
[421099745,1777043444380,-2438.36,0.00019178,2]
[421099746,1777043444390,-613.15823914,0.00019178,2]
[421099747,1777043444399,-500.0,0.00019178,2]
[421099748,1777043444408,-500.0,0.00019178,2]
[421099749,1777043444418,-500.0,0.00019178,2]